Cogmind - Beta 14 @@@ ROGUE MODE // 2024.09.13 @ 11:44:18 Player: BionicBot Result: Destroyed by 4O-LQ5(R) with Subdweller Laser Performance ------------- Evolutions (0) 0 Regions Visited (2) 400 Robots Destroyed (41) 205 Value Destroyed (863) 863 Prototype IDs (4) 80 Alien Tech Used (0) 0 Bonus (0) 0 TOTAL SCORE: 1548 Bonus ------- None Cogmind --------- Core Integrity 0/250 Matter 209/300 Energy 80/200 System Corruption 2% Temperature Cool (24) Movement Treading (240) Ox1 Location -10/Subcaves Parts ------- > --- POWER (1) -------- Subdweller Power Source > --- PROPULSION (2) --- Light Treads Subdweller Monowheel > --- UTILITY (2) ------ Small Storage Unit Makeshift Light Armor Plating > --- WEAPON (2) ------- Subdweller Beam Cannon Subdweller Machine Gun > --- INVENTORY (8) ---- Subdweller Power Source Subdweller Monowheel Subdweller Monowheel Subdweller Optics Subdweller Optics Seismic Detector Multitool Peak State ------------ > --- POWER ------------ Subdweller Power Source > --- PROPULSION ------- Subdweller Monowheel Subdweller Monowheel > --- UTILITY ---------- Small Storage Unit Makeshift Light Armor Plating > --- WEAPON ----------- Subdweller Beam Cannon Subdweller Machine Gun > --- INVENTORY -------- Subdweller Optics Seismic Detector Subdweller Machine Gun Multitool [Rating: 15] Favorites ----------- Power Ion Engine Engine Ion Engine Propulsion Light Treads Treads Light Treads Wheel Subdweller Monowheel Utility Small Storage Unit Device Seismic Detector Storage Small Storage Unit Protection Makeshift Light Armor Plating Weapon Beam Cannon Energy Gun Medium Laser Energy Cannon Beam Cannon Ballistic Gun Subdweller Machine Gun Launcher Rocket Launcher Build | -11 -10 -10 ------- Run | Yrd Mat Sub Slots Evolved . | . . . Power . | . . . Propulsion . | . . . Utility . | . . . Weapon . | . . . Parts Attached 34 | 7 7 20 Power 5 | 1 1 3 Engine 5 | 1 1 3 Core . | . . . Reactor . | . . . Propulsion 8 | 2 2 4 Treads 5 | 2 2 1 Leg . | . . . Wheel 3 | . . 3 Hover . | . . . Flight . | . . . Utility 4 | 2 1 1 Device 1 | 1 . . Storage 1 | 1 . . Processor . | . . . Hackware . | . . . Protection 2 | . 1 1 Artifact . | . . . Weapon 17 | 2 3 12 Energy Gun 1 | 1 . . Energy Cannon 7 | . 2 5 Ballistic Gun 4 | 1 1 2 Ballistic Cannon . | . . . Launcher 5 | . . 5 Special Weapon . | . . . Impact Weapon . | . . . Slashing Weapon . | . . . Piercing Weapon . | . . . Special Melee Weapon . | . . . Unidentified Prototypes . | . . . Parts Lost 8 | . 1 7 Power 2 | . 1 1 Propulsion 2 | . . 2 Utility . | . . . Weapon 4 | . . 4 Highest Loss Streak 4 | . 1 4 To Critical Strikes . | . . . Average Slot Usage (%) 91 | . 99 87 Engine 11 | . 14 9 Treads 12 | . 28 5 Wheel 10 | . . 14 Device 2 | . 8 . Storage 14 | . 14 14 Protection 11 | . 5 14 Energy Gun 2 | . 7 . Energy Cannon 16 | . 15 16 Ballistic Gun 2 | . 4 2 Launcher 6 | . . 8 Peak Build Rating 15 | 7 8 15 Average Rating 10 | 3 7 12 On Entrance 5 | . 7 8 Naked Turns . | . . . Heaviest Build 26 | 14 17 26 Greatest Support 40 | 40 40 40 Greatest Overweight (x) 8 | 4 . 8 Average Overweight (x) 1 | 2 . 1 Largest Inventory Capacity 8 | 8 8 8 Average Capacity 7 | 7 8 8 Most Carried 8 | 4 8 8 Average Carried 7 | 3 6 7 Final Capacity 8 | 8 8 8 Final Carried 8 | 2 8 7 Class Distribution -------------------- 89% | Mutant 10% | Scavenger-Mutant Dominant Class ---------------- Mutant | -10/Materials Mutant | -10/Subcaves Resources | -11 -10 -10 ----------- Run | Yrd Mat Sub Matter Collected 921 | 275 109 537 Remotely . | . . . Salvage Created 954 | 94 368 492 Parts 91 | 5 41 45 Haulers Intercepted 1 | . 1 . Recyclers Shooed 1 | 1 . . Parts Field Recycled . | . . . Retrieved Matter . | . . . Parts Self-Destructed 16 | . . 16 Prevented . | . . . Kills | -11 -10 -10 ------- Run | Yrd Mat Sub Combat Hostiles Destroyed 29 | . 10 19 Guns 6 | . 5 1 Cannons 9 | . 5 4 AOE 14 | . . 14 Classes Destroyed 12 | 2 7 3 Worker 1 | . 1 . Builder 1 | . 1 . Tunneler 2 | 1 1 . Hauler 1 | . 1 . Recycler 2 | 1 1 . Operator 2 | . 2 . Watcher 3 | . 3 . Swarmer 15 | . 9 6 Grunt 1 | . 1 . Sentry 1 | . . 1 Artisan 1 | . . 1 Subdweller 12 | . . 12 Best Kill Streak 5 | 2 5 4 Combat Bots Only 4 | . 4 4 Max Kills in Single Turn 3 | 1 1 3 Gunslinging . | . . . Exploded 3 | . . 3 Melee . | . . . Uniques/NPCs Destroyed . | . . . Combat | -11 -10 -10 -------- Run | Yrd Mat Sub Hostile Shots Fired 103 | . 33 70 Missed 29 | . 9 20 Damage Taken 1560 | . 412 1148 Core 260 | . 63 197 Absorbed by Shields . | . . . Redirected to Shielding 6 | . 1 5 Core Remaining (%) 100 | 100 . . Volleys Fired 98 | 5 38 55 Largest 2 | 2 2 2 Hottest 120 | 70 120 120 Shots Fired 164 | 10 76 78 Gun 57 | 10 37 10 Cannon 75 | . 39 36 Launcher 32 | . . 32 Special . | . . . Kinetic 33 | 5 18 10 Thermal 99 | 5 58 36 Explosive 32 | . . 32 Electromagnetic . | . . . Robot Hit Streak 9 | 3 7 9 Robot Miss Streak 6 | 1 6 4 Penetration Max . | . . . Secondary Targets . | . . . Shots Hit Robots 85 | 7 40 38 Core Hits 51 | 3 25 23 Critical Kills . | . . . Critical Parts Destroyed . | . . . Critical Strikes 1 | . 1 . Burn 1 | . 1 . Melee Attacks . | . . . Impact . | . . . Slashing . | . . . Piercing . | . . . Sneak Attacks . | . . . Combat Hostiles . | . . . Follow-up Attacks . | . . . Damage Inflicted 2803 | 70 794 1939 Guns 511 | 70 247 194 Cannons 820 | . 364 456 Explosions 1455 | . 166 1289 Melee . | . . . Ramming 17 | . 17 . Kinetic 326 | 33 99 194 Thermal 1005 | 37 512 456 Explosive 1455 | . 166 1289 Electromagnetic . | . . . Impact . | . . . Slashing . | . . . Piercing . | . . . Highest Corruption 2 | . 2 2 Average Corruption 1 | . 1 2 Corruption Purged . | . . . Corruption Blocked . | . . . Effects 40 | . . 40 Message Errors 6 | . . 6 Matter Fused 12 | . . 12 Heat Flow Errors 4 | . . 4 Energy Discharges 5 | . . 5 Data Loss (minor) 8 | . . 8 Data Loss (major) 1 | . . 1 Misfires 1 | . . 1 Alerts 3 | . . 3 Overload Shots . | . . . Overflow Damage 91 | . 91 . Projectiles 15 | . 15 . Explosions 76 | . 76 . Melee . | . . . Knockbacks 1 | . 1 . Impact 1 | . 1 . Kinetic . | . . . Secondary . | . . . Self-Inflicted Damage 339 | . 205 134 Shots 7 | . 2 5 Rammed 3 | . 3 . Targets Rammed 4 | . 4 . Kicked . | . . . Crushed 1 | . 1 . Highest Temperature 264 | 60 192 264 Average Temperature 55 | 29 60 47 Received Heat Transfer 207 | . 18 189 Siege Activations . | . . . Robots Corrupted . | . . . Combat Hostiles . | . . . Parts Fried . | . . . Impact Corruptions . | . . . Robots Melted . | . . . Combat Hostiles . | . . . Parts Melted 5 | . 3 2 Heat Transferred 2220 | 111 1295 814 Parts Sabotaged . | . . . Parts Stolen . | . . . Parts Stripped . | . . . Power Chain Reactions . | . . . Alert | -11 -10 -10 ------- Run | Yrd Mat Sub Peak Influence 277 | 10 277 . Initial 6 | . 6 . Average 118 | 3 131 . Maximum Alert Level 1 | . 1 . Low Security (%) 88 | 100 86 . Level 1 11 | . 13 . Level 2 . | . . . Level 3 . | . . . Level 4 . | . . . Level 5 . | . . . High Security . | . . . Max Security . | . . . Squads Dispatched 2 | . 2 . Investigation . | . . . Extermination . | . . . Reinforcement 2 | . 2 . Assault . | . . . Garrison . | . . . Intercept . | . . . Searches Triggered . | . . . Construction Impeded . | . . . Haulers Reinforced . | . . . Active Scanning Responses . | . . . Cargo Convoy Interrupts . | . . . Stealth | -11 -10 -10 --------- Run | Yrd Mat Sub Distress Signals . | . . . Communications Jammed . | . . . Distress Signals . | . . . Times Spotted 43 | . 24 19 Peak Tracking Total 3 | . 3 3 Tactical Retreats 1 | . 1 . Traps | -11 -10 -10 ------- Run | Yrd Mat Sub Traps Triggered 4 | . 3 1 Indirectly . | . . . Trap Hack Attempts . | . . . Triggered . | . . . Disarmed . | . . . Reprogrammed . | . . . Reused . | . . . Traps Extracted . | . . . Installed . | . . . Triggered 4 | . . 4 Machines | -11 -10 -10 ---------- Run | Yrd Mat Sub Machines Disabled 4 | . 4 . Max in Single Turn 4 | . 4 . Machines Repaired . | . . . Machines Dismantled . | . . . Machines Sabotaged . | . . . Overloaded Fab Kills . | . . . Hacking | -11 -10 -10 --------- Run | Yrd Mat Sub Machines Accessed 6 | . 6 . Terminals 6 | . 6 . Fabricators . | . . . Repair Stations . | . . . Recycling Units . | . . . Scanalyzers . | . . . Garrison Access . | . . . Total Hacks 14 | . 14 . Successful 7 | . 7 . Failed 7 | . 7 . Catastrophic 1 | . 1 . Database Lockouts . | . . . Manual 4 | . 4 . Terminals 14 | . 14 . Fabricators . | . . . Repair Stations . | . . . Recycling Units . | . . . Scanalyzers . | . . . Garrison Access . | . . . Terminal Hacks 7 | . 7 . Prototype ID Bank 3 | . 3 . Locate Traps 1 | . 1 . Recall Reinforcements 1 | . 1 . Registered Components 1 | . 1 . Zone Layout 1 | . 1 . Fabricator Hacks . | . . . Repair Station Hacks . | . . . Recycling Unit Hacks . | . . . Scanalyzer . | . . . Garrison Access Hacks . | . . . Unauthorized Hacks . | . . . Terminals . | . . . Fabricators . | . . . Repair Stations . | . . . Recycling Units . | . . . Scanalyzers . | . . . Garrison Access . | . . . Data Cores Recovered 1 | . 1 . Used . | . . . Hacking Detections 5 | . 5 . Full Trace Events . | . . . Feedback Events . | . . . Feedback Blocked . | . . . Robot Schematics Acquired . | . . . Robots Built . | . . . Authchips . | . . . Time . | . . . Total Robot Build Rating . | . . . Part Schematics Acquired . | . . . Parts Built . | . . . Authchips . | . . . Time . | . . . Total Part Build Rating . | . . . Parts Repaired . | . . . Time . | . . . Parts Recycled . | . . . Recycled Matter . | . . . Retrieved Matter . | . . . Retrieved Components . | . . . Parts Scanalyzed . | . . . Part Schematics Acquired . | . . . Parts Damaged . | . . . Bothacking | -11 -10 -10 ------------ Run | Yrd Mat Sub Used RIF Installer . | . . . Robots Hacked . | . . . Non-combat . | . . . Combat . | . . . Robot Hacks Applied . | . . . Relay Couplers Released . | . . . Fabnet Peak Effective % . | . . . Robots Rewired . | . . . Allies Hacked . | . . . Hacks Repelled . | . . . Allies | -11 -10 -10 -------- Run | Yrd Mat Sub Total Allies . | . . . Largest Group . | . . . Highest-Rated Group . | . . . Highest-Rated Ally . | . . . Total Orders . | . . . Ally Attacks . | . . . Total Damage . | . . . Kills . | . . . Allies Corrupted . | . . . Allies Melted . | . . . Intel | -11 -10 -10 ------- Run | Yrd Mat Sub Robot Analysis Total . | . . . Derelict Logs Recovered . | . . . Drone Launches . | . . . Drone Recoveries . | . . . Exploration | -11 -10 -10 ------------- Run | Yrd Mat Sub Turns Passed 4000 | 129 1176 2695 Spaces Moved 2239 | 53 639 1547 Core 299 | 49 . 250 Treads 1010 | 4 639 367 Legs . | . . . Wheels 930 | . . 930 Hover . | . . . Flight . | . . . Fastest Speed 50 | 50 160 110 Average Speed 162 | 192 160 162 Slowest Speed 450 | 250 160 450 Overloaded Moves . | . . . Propulsion Burnouts . | . . . Robots Hopped . | . . . Cave-ins Triggered . | . . . Exploration Rate (%) 58 | 6 97 71 Regions Visited 2 Branch Regions 1 Pre-discovered Areas . | . . . Known Exits Taken . | . . . Unknown Exits Taken 2 | 1 1 . Scrap Searched . | . . . Spaces Dug 11 | . . 11 Terrain Destroyed 277 | . 53 224 Melee . | . . . Projectile 1 | . . 1 AOE 276 | . 53 223 Terrain Rammed . | . . . Walls Destroyed . | . . . Machines Disabled . | . . . Actions | -11 -10 -10 --------- Run | Yrd Mat Sub Total 2437 | 70 719 1648 Wait 14 | . 9 5 Move 2237 | 52 638 1547 Hop . | . . . Pick Up 30 | 6 11 13 Fast Attach 7 | 3 3 1 Attach 12 | 4 1 7 Detach 3 | . 3 . Swap 15 | . 3 12 Drop 17 | . 9 8 Fire 98 | 5 38 55 Melee . | . . . Ram . | . . . Kick . | . . . Crush 4 | . 4 . Escape Stasis . | . . . Rewire . | . . . Trap . | . . . Miscellaneous . | . . . Route ------- -11/Scrapyard -10/Materials (discovered 5 exits: [*Mat x3] / [*Min] / [*Sub]) -10/Subcaves (discovered 2 exits: [*Mat x2]) History --------- Turn | Location | Event 45 | -11/Scrapyard | Discovered new exit (range 16) 130 | -11/Scrapyard | Entered Materials 323 | -10/Materials | Build established: Mutant 370 | -10/Materials | Discovered new exit (range 7) 688 | -10/Materials | Discovered new exit (range 16) 969 | -10/Materials | Discovered new exit (range 9) 1236 | -10/Materials | Discovered new exit (range 16) 1300 | -10/Materials | Discovered new exit (range 5) 1306 | -10/Materials | Entered Subcaves 1435 | -10/Subcaves | Ambushed by Subdweller buried in earth 1504 | -10/Subcaves | Shifting Twisted Machinery released Scrap Shield 1516 | -10/Subcaves | Shifting Twisted Machinery released Mak. Light Armor Plating 1582 | -10/Subcaves | Ambushed by Subdweller buried in earth 2094 | -10/Subcaves | Ambushed by Subdweller buried in earth 2162 | -10/Subcaves | Shifting Twisted Machinery released Shrapnel Trap 2167 | -10/Subcaves | Shifting Twisted Machinery released Battle Rifle 2229 | -10/Subcaves | Shifting Twisted Machinery released Mak. Thermal Plating 2230 | -10/Subcaves | A swath of the cavern ceiling suddenly collapsed 2300 | -10/Subcaves | Shifting Twisted Machinery released Enh. Flamer 2504 | -10/Subcaves | Ambushed by angry Subdweller bent on revenge 2505 | -10/Subcaves | Core integrity fell below 50% 2814 | -10/Subcaves | Discovered new exit (range 4) 3597 | -10/Subcaves | Core integrity fell below 20% 3631 | -10/Subcaves | Lost 4 parts (4w) 3670 | -10/Subcaves | Discovered new exit (range 11) 3883 | -10/Subcaves | Build established: Scavenger-Mutant 4001 | -10/Subcaves | Destroyed by 4O-LQ5(R) with Subdweller Laser Last Messages --------------- 03600_ Sub. Machine Gun destroyed. 03602_ BV-JFW(R) destroyed. 03614_ Acquired Lgt. Treads. 03616_ Acquired 56 matter. 03621_ Acquired 39 matter. 03625_ System corrupted: Heat flow error (+299). 03626_ Acquired Sub. Monowheel. 03632_ Acquired Sub. Optics. 03637_ Acquired Sub. Power Source. 03662_ System corrupted: Energy discharge (-56). 03670_ EXIT=FOUND 03732_ Sub. Power Source shoots sparks and powers down. 03750_ System corrupted: Matter fused (-7). 03770_ System corrupted: Substantial component data lost. 03825_ X V4 MJYYSN%VILVI#AX:Q#8CL6G#T 03827_ Subatomizers dissect the Sub. Machine Gun. 03938_ System corrupted: Matter fused (-10). 03982_ EA-YZQ(R) destroyed. 03997_ System corrupted: Energy discharge (-23). 03998_ Destroyed Scrap Shield. Map ----- +----------------------------------------------------+ | ?????????????????????????????????????????????????? | | ?????????????????????????????????????????????????? | | ?????????????????????????????????????????????????? | | ?????????????????????????????????????????????????? | | ?????????????????????????????????????????????????? | | ?????????????????????????????????????????????????? | | ?????????????????????????????????????????????????? | | ?????????????????????????????????????????????????? | | ?????????????????????????????????????????????????? | | ?????????????????????????????????????????????????? | | ?????????????????????????????????????????????????? | | ?????????????????????????????????????????????????? | | ?????????????????????????????????????????????????? | | ?????????????????????????????????????????????????? | | ?????????????????????????????????????????????????? | | ?????????????????????????????????????????????????? | | ?????????????????????????????????????????????????? | | ?????????????????????????????????????????????????? | | ?????????????????????????????????????????????????? | | ?????????????????????????????????????????????????? | | ?????????????????????????????????????????????????? | | ?????????????????????????????????????????????????? | | ?????????????????????????????????????????????????? | | ?????????????????????????????????????????????????# | | ???????????????????????#####???????????????????### | | ???????????????????????#R@ ##??????????????????# | | #????#?????? ???????# # ##?????????????????## | | "### # ??????# # ## ##???????????????## # | | """"""" #???????????# ### ## ##?????????????## ## | | # ##"# #?????????? #???#?# ###??????????## ##? | | " "##????????????? ??????### #???????#### ##?? | | #"""#??????????? ?????????## ##?????## ##??? | | # ""#?????????? # ??????????## ##???## ####???? | | " ###?????????# ###????????????# ##### ##??????? | | " #"#???????? ???????????????### ## ##???????? | | # "##??"#???? ??????????????????### ##????????? | | "####""?????# ?????????????????????####?????????? | | "## ??????????????????????????????????????????? | | "# ????????????????????????????????????????????? | | "## ?????????????????????????????????????????????? | | ##??????????????????????????????????????????????? | | #???????????????????????????????????????????????? | | ##??????????????????????????????????????????????? | | #??????????????????????????????????????????????? | | ###????????????????????????????????????????????? | | ##???????????????????????????????????????????? | | # ##???????????????????????????????????????????? | | ##???????????????????????????????????????????? | | ###?????#####??????????????????????????????????? | | #??????# ##?????????????????????????????????? | +----------------------------------------------------+ Best States ------------- Heat Dissipation 25 Energy Generation 15 Energy Capacity 250 Matter Stores 300 Matter Capacity 300 Sight Range 16 Terrain Scan Density 10 Armor Coverage 100 Core Shielding 20 Evasion (%) 50 Recoil Reduction 2 Item Schematics ----------------- None Robot Schematics ------------------ None Fabricated ------------ Nothing Alien Tech Used ----------------- None Achievements -------------- None Challenges ------------ None Game ------ Seed BiocellSuperquantumTreads Manual? 0 Play Time 00:29:39 Cumulative 115.5 hours Start 2024.09.13 @ 11:01:04 End 2024.09.13 @ 11:44:18 Sessions 1 Manual Loads 0 Difficulty Rogue Special Mode None Game No. 87 Rogue 87 Adventurer 0 Explorer 0 Win Type - Total 3 Types 3/0/0/0/0/0/0/0/0 Lore% 38 Gallery% 50 Achievement% 46 Wizard Run 0 Options --------- Layout 0 ASCII 0 Keyboard 1 Movement Numpad Keybinds 0 Fullscreen 2 Font 18/SmallcapsGlow Map View 76x50 Zoom Use 0% Tactical HUD 1 Map Filters NONE Filters NONE Steam 1 RUN: ad8ff943-0f02-4dbc-93f2-18c9e083e73c